bitfinex/quotes_SOLUSD_20251117
["timestamp","ask_amount","ask_price","bid_price","bid_amount"]
[1763387880974,0.67,138.5,138.38,9.78882769]
[1763387881172,0.67,138.5,138.43,6.84356751]
[1763387881477,6.84356751,138.47,138.4,6.84356751]
[1763387881685,18.12096,138.43,138.39,6.84356751]
[1763387882000,18.12096,138.43,138.37,6.84356751]
[1763387882189,0.67,138.43,138.37,6.84356751]
[1763387882576,0.67,138.43,138.34,10.47882769]
[1763387882577,7.51356751,138.43,138.36,6.84356751]
[1763387882912,0.67,138.43,138.36,6.84356751]
[1763387883210,6.84356751,138.39,138.32,0.69]
[1763387883375,6.84356751,138.34,138.26,0.69]
[1763387883581,6.84356751,138.32,138.27,6.84356751]
[1763387883780,6.84356751,138.31,138.26,7.53356751]
[1763387884096,18.12096,138.33,138.26,0.69]
[1763387884270,6.84356751,138.3,138.25,6.84356751]
[1763387884470,59.78882769,138.39,138.25,6.84356751]
[1763387884471,0.67,138.38,138.25,0.69]
[1763387884674,18.12096,138.43,138.34,6.84356751]
[1763387884871,18.12096,138.43,138.26,1.41327498]
[1763387884872,6.84356751,138.42,138.37,6.84356751]
[1763387885114,0.67,138.46,138.41,6.84356751]
[1763387885273,6.84356751,138.44,138.38,0.69]
[1763387885470,18.79096,138.43,138.38,6.84356751]
[1763387885674,18.79096,138.43,138.37,6.84356751]
[1763387885869,0.67,138.42,138.35,0.69]
[1763387886087,6.84356751,138.44,138.36,9.78882769]
[1763387886302,5.23431516,138.5,138.36,9.78882769]
[1763387886501,6.84356751,138.47,138.42,6.84356751]
[1763387886703,6.84356751,138.46,138.38,9.78882769]
[1763387886915,6.84356751,138.46,138.41,6.84356751]
[1763387887082,7.55356751,138.45,138.4,6.84356751]
[1763387887276,18.83096,138.45,138.4,6.84356751]
[1763387887477,18.12096,138.45,138.41,6.84356751]
[1763387887677,6.84356751,138.48,138.42,0.67]
[1763387887902,6.84356751,138.45,138.38,0.67]
[1763387888104,6.84356751,138.46,138.41,6.84356751]
[1763387888303,18.12096,138.45,138.41,6.84356751]
[1763387888480,18.83096,138.45,138.41,6.84356751]
[1763387888684,0.71,138.5,138.42,0.67]
[1763387888882,7.55356751,138.5,138.45,6.84356751]
[1763387889186,0.71,138.53,138.43,9.78882769]
[1763387889701,25.67452751,138.53,138.48,6.84356751]
[1763387889882,18.83096,138.53,138.48,6.84356751]
[1763387890078,0.71,138.56,138.52,6.84356751]
[1763387890320,5.30070159,138.59,138.5,9.78882769]
[1763387890480,0.71,138.59,138.55,6.84356751]
[1763387890814,0.2,138.61,138.51,0.67]
[1763387890815,7.55356751,138.58,138.51,0.67]
[1763387890978,6.84356751,138.57,138.52,6.84356751]
[1763387891183,6.84356751,138.56,138.48,0.67]
[1763387891403,7.55356751,138.56,138.51,6.84356751]
[1763387891703,6.84356751,138.56,138.51,6.84356751]
[1763387891906,24.96452751,138.54,138.49,6.84356751]
[1763387892203,0.71,138.55,138.47,6.84356751]
[1763387892204,18.12096,138.53,138.47,6.84356751]
[1763387892406,6.84356751,138.52,138.47,6.84356751]
[1763387892578,7.55356751,138.52,138.45,0.67]
[1763387892785,24.96452751,138.5,138.44,6.84356751]
[1763387892985,18.12096,138.5,138.44,6.84356751]
[1763387893308,6.84356751,138.49,138.44,6.84356751]
[1763387893674,6.84356751,138.49,138.45,6.84356751]
[1763387893675,0.71,138.49,138.45,6.84356751]
[1763387893874,18.83096,138.48,138.41,0.67]
[1763387894096,6.84356751,138.46,138.41,6.84356751]
[1763387894496,7.55356751,138.45,138.4,6.84356751]
[1763387894685,24.96452751,138.44,138.39,6.84356751]
[1763387894983,18.12096,138.44,138.4,6.84356751]
[1763387895411,0.71,138.43,138.36,0.67]
[1763387895716,6.84356751,138.42,138.37,6.84356751]
[1763387895888,6.84356751,138.42,138.27,0.1]
[1763387895889,18.12096,138.39,138.3,0.67]
[1763387896092,6.84356751,138.39,138.34,6.84356751]
[1763387896278,25.67452751,138.39,138.31,0.67]
[1763387896479,6.84356751,138.38,138.33,6.84356751]
[1763387896816,6.84356751,138.38,138.31,0.67]
[1763387897017,18.83096,138.39,138.34,6.84356751]
[1763387897018,25.67452751,138.39,138.34,6.84356751]
[1763387897222,18.12096,138.39,138.31,0.67]
[1763387897518,0.68,138.38,138.31,0.67]
[1763387897814,7.52356751,138.38,138.33,6.84356751]
[1763387898417,7.52356751,138.37,138.32,6.84356751]
[1763387898918,18.12096,138.39,138.33,6.84356751]
[1763387899084,18.12096,138.39,138.34,6.84356751]
[1763387899085,18.80096,138.39,138.34,6.84356751]
[1763387899289,17.38,138.5,138.37,6.84356751]
[1763387899290,7.52356751,138.42,138.37,6.84356751]
[1763387899488,4.61664457,138.46,138.4,6.84356751]
[1763387899698,5.29740281,138.49,138.38,0.67]
[1763387899902,6.84356751,138.44,138.39,6.84356751]
[1763387900310,7.52356751,138.44,138.39,6.84356751]
[1763387900483,0.68,138.44,138.4,6.84356751]
[1763387900684,7.52356751,138.44,138.39,6.84356751]
[1763387901008,6.84356751,138.4,138.35,6.84356751]
[1763387901315,24.96452751,138.38,138.33,6.84356751]
[1763387901481,7.52356751,138.37,138.32,6.84356751]
[1763387901908,0.68,138.36,138.3,0.67]
[1763387902116,18.12096,138.39,138.3,0.67]
[1763387902313,18.12096,138.39,138.35,6.84356751]
[1763387902620,6.84356751,138.37,138.32,6.84356751]
[1763387902791,7.52356751,138.38,138.33,6.84356751]
[1763387902984,0.68,138.38,138.33,6.84356751]
[1763387903697,6.84356751,138.35,138.3,6.84356751]
[1763387904210,7.52356751,138.35,138.3,6.84356751]
[1763387904592,0.68,138.38,138.31,0.67]
[1763387904799,18.12096,138.37,138.35,6.84356751]
[1763387904992,18.12096,138.38,138.34,6.84356751]
[1763387905405,18.12096,138.38,138.35,6.84356751]
[1763387905711,18.12096,138.41,138.36,6.84356751]
[1763387906008,7.52356751,138.44,138.39,6.84356751]
[1763387906217,7.52356751,138.44,138.34,9.78882769]
[1763387906218,6.84356751,138.46,138.41,6.84356751]
[1763387906601,18.80096,138.45,138.41,6.84356751]
[1763387906782,6.84356751,138.44,138.36,0.67]
[1763387906986,6.84356751,138.44,138.39,6.84356751]
[1763387907183,0.68,138.45,138.34,9.78882769]
[1763387907184,6.84356751,138.42,138.34,9.78882769]
[1763387907499,18.12096,138.41,138.37,6.84356751]
[1763387907689,0.68,138.41,138.36,6.84356751]
[1763387907888,0.68,138.41,138.37,6.84356751]
[1763387908100,0.68,138.44,138.39,6.84356751]
[1763387908305,7.52356751,138.44,138.39,6.84356751]
[1763387908527,6.84356751,138.43,138.38,6.84356751]
[1763387908687,0.68,138.48,138.42,6.84356751]
[1763387908890,182.78,138.5,138.4,6.84356751]
[1763387908891,6.84356751,138.45,138.4,6.84356751]
[1763387909099,0.68,138.49,138.42,6.84356751]
[1763387909306,6.84356751,138.46,138.41,6.84356751]
[1763387909511,6.84356751,138.46,138.4,6.84356751]
[1763387909723,6.84356751,138.46,138.41,6.84356751]
[1763387909923,7.52356751,138.46,138.41,6.84356751]
[1763387910123,0.68,138.46,138.41,6.84356751]
[1763387910325,0.68,138.45,138.39,0.67]
[1763387910620,0.68,138.45,138.37,9.78882769]
[1763387910621,7.52356751,138.45,138.4,6.84356751]
[1763387910829,0.68,138.45,138.4,6.84356751]
[1763387911032,6.84356751,138.41,138.36,6.84356751]
[1763387911521,25.64452751,138.4,138.34,6.84356751]
[1763387911692,18.80096,138.4,138.36,6.84356751]
[1763387911893,7.52356751,138.43,138.38,6.84356751]
[1763387912095,0.68,138.43,138.38,6.84356751]
[1763387912310,7.52356751,138.43,138.38,6.84356751]
[1763387912706,18.12096,138.44,138.4,6.84356751]
[1763387913020,6.84356751,138.46,138.41,6.84356751]
[1763387913198,24.96452751,138.46,138.41,6.84356751]
[1763387913393,24.96452751,138.46,138.39,0.67]
[1763387913612,7.52356751,138.45,138.36,0.67]
[1763387913795,18.12096,138.42,138.36,0.67]
[1763387913994,6.84356751,138.41,138.36,6.84356751]
[1763387914202,7.52356751,138.41,138.36,6.84356751]
[1763387914403,6.84356751,138.39,138.34,6.84356751]
[1763387914599,18.80096,138.4,138.34,6.84356751]
[1763387914799,18.12096,138.4,138.36,11.678047]
[1763387915113,0.68,138.39,138.36,11.678047]
[1763387915313,0.68,138.39,138.32,0.67]
[1763387915510,0.68,138.39,138.35,11.678047]
[1763387915813,18.12096,138.4,138.36,11.678047]
[1763387916016,18.80096,138.42,138.38,11.678047]
[1763387916222,30.479007,138.42,138.37,11.678047]
[1763387916724,0.71,138.41,138.37,11.678047]
[1763387917133,12.388047,138.43,138.37,11.678047]
[1763387917931,12.388047,138.42,138.35,0.67]
[1763387918329,12.388047,138.41,138.36,11.678047]
[1763387918831,0.71,138.4,138.36,11.678047]
[1763387919947,12.388047,138.44,138.39,11.678047]
[1763387920255,18.12096,138.43,138.4,11.678047]
[1763387920601,18.83096,138.43,138.39,11.678047]
[1763387920804,0.71,138.43,138.39,11.678047]
[1763387921048,11.678047,138.41,138.34,0.72]
[1763387921347,11.678047,138.41,138.36,11.678047]
[1763387921557,12.388047,138.41,138.36,11.678047]
[1763387921708,0.71,138.4,138.36,11.678047]
[1763387921908,0.71,138.4,138.34,0.72]
[1763387922109,0.71,138.4,138.36,11.678047]
[1763387922340,12.388047,138.4,138.31,9.78882769]
[1763387922527,11.678047,138.38,138.33,11.678047]
[1763387922839,11.678047,138.36,138.31,12.398047]
[1763387923045,11.678047,138.35,138.29,0.72]
[1763387923344,11.678047,138.34,138.29,11.678047]
[1763387923512,18.83096,138.36,138.3,11.678047]
[1763387923713,11.678047,138.34,138.29,11.678047]
[1763387923906,29.799007,138.33,138.27,0.1]
[1763387924110,29.799007,138.33,138.28,11.678047]
[1763387924543,0.71,138.37,138.31,11.678047]
[1763387924929,0.71,138.37,138.33,11.678047]
[1763387925126,11.678047,138.36,138.31,11.678047]
[1763387925516,0.71,138.35,138.31,11.678047]
[1763387925952,0.71,138.35,138.28,0.72]
[1763387925953,18.12096,138.34,138.3,11.678047]
[1763387927218,18.12096,138.34,138.28,0.72]
[1763387927443,18.12096,138.34,138.3,11.678047]
[1763387927646,29.799007,138.35,138.3,11.678047]
[1763387927853,30.509007,138.35,138.3,11.678047]
[1763387928160,11.678047,138.33,138.28,11.678047]
[1763387928519,0.71,138.32,138.28,11.678047]
[1763387928858,11.678047,138.31,138.27,0.1]
[1763387929035,11.678047,138.3,138.27,0.1]
[1763387929234,12.388047,138.31,138.27,0.1]
[1763387930347,0.71,138.31,138.27,11.778047]
[1763387930849,0.71,138.31,138.27,0.1]
[1763387930850,12.388047,138.31,138.27,0.1]
[1763387931048,12.388047,138.31,138.27,11.778047]
[1763387931744,0.71,138.34,138.28,11.678047]
[1763387931952,18.12096,138.35,138.28,11.678047]
[1763387932262,11.678047,138.33,138.28,11.678047]
[1763387932467,11.678047,138.33,138.27,0.1]
[1763387932468,11.678047,138.32,138.27,11.778047]
[1763387932653,0.71,138.33,138.27,11.778047]
[1763387932955,11.678047,138.32,138.27,11.778047]
[1763387933364,12.388047,138.32,138.27,11.778047]
[1763387933725,0.71,138.31,138.27,11.778047]
[1763387933926,11.678047,138.3,138.27,0.1]
[1763387934232,11.678047,138.29,138.27,0.1]
[1763387934725,0.71,138.28,138.27,0.1]
[1763387935333,12.388047,138.28,138.27,0.1]
[1763387935834,18.12096,138.29,138.27,0.1]
[1763387936033,29.799007,138.28,138.27,0.1]
[1763387936260,11.678047,138.28,138.27,0.1]
[1763387937926,0.71,138.28,138.27,0.1]
[1763387938127,12.388047,138.28,138.27,0.1]
[1763387938552,0.71,138.28,138.27,0.1]
[1763387938734,12.388047,138.28,138.27,0.1]
[1763387939427,11.678047,138.3,138.27,0.1]
[1763387939627,11.678047,138.31,138.27,0.1]
[1763387939832,11.678047,138.29,138.27,0.1]
[1763387940433,11.678047,138.31,138.27,0.1]
[1763387940627,18.12096,138.28,138.27,0.1]
[1763387941575,0.71,138.33,138.27,11.778047]
[1763387941780,11.678047,138.31,138.27,11.778047]
[1763387941956,11.678047,138.31,138.27,0.1]
[1763387942282,30.509007,138.3,138.27,0.1]
[1763387942487,11.678047,138.28,138.27,0.1]
[1763387942643,29.799007,138.28,138.27,0.1]
[1763387942846,18.12096,138.25,138.23,0.1]
[1763387943071,11.678047,138.24,138.23,0.1]
[1763387943376,12.388047,138.24,138.23,0.1]
[1763387943579,22.17687469,138.24,138.22,0.1]
[1763387943784,11.678047,138.27,138.14,12.398047]
[1763387943785,18.12096,138.2,138.14,12.398047]
[1763387943964,50.0,138.3,138.14,12.398047]
[1763387943965,18.12096,138.28,138.14,0.72]
[1763387944275,29.799007,138.21,138.15,0.72]
[1763387944677,11.678047,138.21,138.16,11.678047]
[1763387944879,29.799007,138.19,138.05,11.678047]
[1763387945065,29.799007,138.19,138.14,11.678047]
[1763387945261,11.678047,138.18,138.13,12.498047]
[1763387945475,11.678047,138.17,138.13,0.82]
[1763387945662,11.678047,138.17,138.13,0.1]
[1763387945867,11.678047,138.16,138.13,0.1]
[1763387946175,11.678047,138.17,138.13,11.778047]
[1763387946477,18.12096,138.17,138.13,12.498047]
[1763387946674,9.78882769,138.25,138.16,11.678047]
[1763387946980,9.78882769,138.25,138.18,11.678047]
[1763387946981,18.12096,138.22,138.18,11.678047]
[1763387947559,11.678047,138.21,138.16,0.71]
[1763387947771,11.678047,138.21,138.16,12.388047]
[1763387947975,11.678047,138.18,138.13,11.778047]
[1763387948286,11.678047,138.18,138.14,11.678047]
[1763387948583,29.799007,138.18,138.13,0.81]
[1763387948788,29.799007,138.18,138.14,11.678047]
[1763387948973,11.678047,138.21,138.16,11.678047]
[1763387949399,11.678047,138.21,138.13,0.1]
[1763387949400,0.58,138.27,138.19,11.678047]
[1763387949689,11.678047,138.38,138.25,11.678047]
[1763387949690,0.58,138.32,138.25,11.678047]
[1763387949872,11.678047,138.31,138.26,11.678047]
[1763387950486,11.678047,138.28,138.23,11.678047]
[1763387950660,11.678047,138.25,138.2,11.678047]
[1763387951087,12.258047,138.25,138.2,11.678047]
[1763387951665,11.678047,138.24,138.19,11.678047]
[1763387951971,29.799007,138.23,138.18,12.388047]
[1763387952371,29.799007,138.23,138.14,9.78882769]
[1763387952372,18.12096,138.23,138.2,11.678047]
[1763387952577,18.12096,138.23,138.2,12.388047]
[1763387952799,11.678047,138.26,138.21,12.388047]
[1763387953094,29.799007,138.26,138.22,11.678047]
[1763387953268,29.799007,138.26,138.21,11.678047]
[1763387953594,29.799007,138.26,138.19,12.388047]
[1763387953595,11.678047,138.24,138.19,12.388047]
[1763387953772,11.678047,138.25,138.2,11.678047]
[1763387954279,18.12096,138.26,138.22,11.678047]
[1763387954476,11.678047,138.28,138.24,11.678047]
[1763387954877,29.799007,138.28,138.24,12.388047]
[1763387955194,11.678047,138.28,138.24,12.388047]
[1763387955492,0.58,138.32,138.26,11.678047]
[1763387955701,11.678047,138.31,138.26,11.678047]
[1763387955870,18.12096,138.3,138.26,11.678047]
[1763387956070,11.678047,138.3,138.25,12.388047]
[1763387956386,29.799007,138.29,138.24,11.678047]
[1763387956765,29.799007,138.29,138.24,12.388047]
[1763387956966,18.12096,138.26,138.21,0.71]
[1763387957167,18.12096,138.26,138.23,11.678047]
[1763387957691,11.678047,138.26,138.21,11.678047]
[1763387957885,11.678047,138.26,138.2,11.678047]
[1763387958085,29.799007,138.26,138.21,0.69]
[1763387958464,11.678047,138.25,138.21,0.69]
[1763387958684,11.678047,138.25,138.19,11.678047]
[1763387958961,11.678047,138.23,138.18,12.368047]
[1763387959468,29.799007,138.23,138.18,11.678047]
[1763387959667,29.799007,138.23,138.19,0.69]
[1763387959973,18.12096,138.23,138.19,0.69]
[1763387960311,29.799007,138.23,138.19,0.69]
[1763387961084,29.799007,138.23,138.13,9.88882769]
[1763387961085,11.678047,138.2,138.16,0.69]
[1763387961394,29.799007,138.2,138.15,0.69]
[1763387961597,18.12096,138.2,138.16,12.368047]
[1763387962088,18.12096,138.2,138.16,0.69]
[1763387962273,11.678047,138.2,138.16,12.368047]
[1763387962476,29.799007,138.23,138.18,11.678047]
[1763387962987,11.678047,138.22,138.18,0.69]
[1763387964187,11.678047,138.27,138.19,11.678047]
[1763387964188,0.58,138.27,138.19,11.678047]
[1763387964495,11.678047,138.24,138.18,0.69]
[1763387964695,11.678047,138.23,138.18,12.368047]
[1763387964869,11.678047,138.23,138.18,0.69]
[1763387965067,11.678047,138.23,138.19,0.69]
[1763387965589,18.12096,138.23,138.19,0.69]
[1763387966180,11.678047,138.22,138.16,0.69]
[1763387966475,11.678047,138.21,138.16,12.368047]
[1763387966883,11.678047,138.21,138.17,0.69]
[1763387967084,0.58,138.22,138.17,0.69]
[1763387967569,11.678047,138.21,138.17,0.69]
[1763387968091,18.12096,138.23,138.2,11.678047]
[1763387968266,11.678047,138.26,138.21,11.678047]
[1763387968466,11.678047,138.27,138.22,12.368047]
[1763387968675,11.678047,138.27,138.22,0.69]
[1763387968866,11.678047,138.27,138.23,0.69]
[1763387969077,11.678047,138.24,138.19,0.69]
[1763387969291,11.678047,138.24,138.19,12.368047]
[1763387969484,18.70096,138.26,138.19,12.368047]
[1763387969666,11.678047,138.24,138.19,12.368047]
[1763387970867,12.258047,138.24,138.18,11.678047]
[1763387971072,11.678047,138.22,138.17,0.69]
[1763387971392,11.678047,138.21,138.17,0.69]
[1763387972477,29.799007,138.23,138.17,12.368047]
[1763387972876,11.678047,138.22,138.17,12.368047]
[1763387973194,29.799007,138.23,138.17,12.368047]
[1763387973502,18.12096,138.23,138.18,12.368047]
[1763387973693,29.799007,138.23,138.18,12.368047]
[1763387973865,29.799007,138.23,138.18,0.69]
[1763387974794,24.99819135,138.23,138.18,0.69]
[1763387975280,0.58,138.22,138.16,6.87723135]
[1763387975595,6.87723135,138.21,138.16,6.87723135]
[1763387975908,6.87723135,138.21,138.16,7.56723135]
[1763387976085,6.87723135,138.21,138.17,0.69]
[1763387977296,6.87723135,138.21,138.16,6.87723135]
[1763387977490,0.58,138.22,138.16,6.87723135]
[1763387977676,18.12096,138.2,138.17,0.67]
[1763387978089,18.12096,138.2,138.16,6.87723135]
[1763387978283,18.12096,138.2,138.16,7.54723135]
[1763387978893,18.12096,138.2,138.14,0.67]
[1763387978894,25.57819135,138.2,138.14,0.67]
[1763387979193,18.70096,138.23,138.16,6.87723135]
[1763387979398,6.40189494,138.3,138.17,0.67]
[1763387979572,0.58,138.32,138.25,6.87723135]
[1763387979779,0.58,138.32,138.26,6.87723135]
[1763387979780,6.87723135,138.31,138.26,6.87723135]
[1763387979976,0.58,138.32,138.26,6.87723135]
[1763387980201,18.12096,138.3,138.26,6.87723135]
[1763387980389,18.12096,138.3,138.25,0.67]
[1763387980576,18.12096,138.3,138.25,7.54723135]
[1763387981074,6.87723135,138.31,138.25,7.54723135]
[1763387981271,17.98,138.36,138.27,6.87723135]
[1763387981475,6.87723135,138.32,138.26,0.67]
[1763387981778,6.87723135,138.31,138.26,7.54723135]
[1763387981971,6.87723135,138.33,138.28,6.87723135]
[1763387982280,17.4,138.36,138.31,6.87723135]
[1763387982816,35.52096,138.36,138.32,0.67]
[1763387983003,18.12096,138.33,138.16,0.72379849]
[1763387983174,6.87723135,138.32,138.26,0.67]
[1763387983372,18.12096,138.3,138.26,6.87723135]
[1763387983818,0.58,138.32,138.26,6.87723135]
[1763387984000,24.99819135,138.33,138.28,6.87723135]
[1763387984372,18.12096,138.33,138.2,9.78882769]
[1763387984692,18.12096,138.33,138.21,7.54723135]
[1763387984693,6.87723135,138.26,138.21,7.54723135]
[1763387984894,18.12096,138.24,138.21,0.67]
[1763387985100,6.87723135,138.23,138.18,7.54723135]
[1763387985294,18.12096,138.25,138.21,6.87723135]
[1763387985494,18.12096,138.23,138.22,0.67]
[1763387985685,18.12096,138.23,138.2,6.87723135]
[1763387985886,18.12096,138.23,138.19,6.87723135]
[1763387986107,18.12096,138.23,138.18,0.67]
[1763387986108,24.99819135,138.23,138.18,0.67]
[1763387986399,9.78882769,138.28,138.18,0.67]
[1763387986400,0.58,138.25,138.18,0.67]
[1763387986607,6.87723135,138.23,138.18,7.54723135]
[1763387986804,24.99819135,138.22,138.18,0.67]
[1763387987708,18.12096,138.22,138.18,7.54723135]
[1763387988807,18.12096,138.22,138.19,6.87723135]
[1763387988998,18.12096,138.22,138.18,7.54723135]
[1763387989399,18.12096,138.22,138.19,7.54723135]
[1763387989801,18.12096,138.24,138.2,7.54723135]
[1763387990001,24.99819135,138.24,138.2,0.67]
[1763387990326,18.12096,138.24,138.21,0.67]
[1763387990507,6.87723135,138.25,138.21,0.67]
[1763387990704,24.99819135,138.25,138.21,0.67]
[1763387991009,18.12096,138.3,138.21,0.67]
[1763387991211,24.99819135,138.26,138.21,7.54723135]
[1763387991420,18.12096,138.26,138.22,6.87723135]
[1763387991597,18.12096,138.25,138.23,7.54723135]
[1763387991798,18.12096,138.25,138.23,0.67]
[1763387992295,18.12096,138.27,138.23,7.54723135]
[1763387992495,6.87723135,138.28,138.23,7.54723135]
[1763387992702,18.12096,138.27,138.23,7.54723135]
[1763387992902,6.87723135,138.28,138.23,7.54723135]
[1763387993414,6.87723135,138.34,138.27,6.87723135]
[1763387993613,6.87723135,138.32,138.27,6.87723135]
[1763387993804,6.87723135,138.29,138.24,6.87723135]
[1763387993989,7.45723135,138.29,138.23,7.54723135]
[1763387994186,6.87723135,138.3,138.25,6.87723135]
[1763387994389,6.87723135,138.31,138.24,0.67]
[1763387994592,6.87723135,138.32,138.27,6.87723135]
[1763387994789,6.87723135,138.34,138.29,6.87723135]
[1763387995035,6.87723135,138.35,138.3,7.54723135]
[1763387995332,18.12096,138.33,138.31,7.54723135]
[1763387995912,24.27723135,138.36,138.32,0.67]
[1763387995913,17.4,138.36,138.32,0.67]
[1763387996399,35.52096,138.36,138.32,7.54723135]
[1763387996599,17.4,138.36,138.32,0.67]
[1763387996908,0.2,138.37,138.35,6.87723135]
[1763387997211,0.2,138.37,138.36,6.87723135]
[1763387997391,0.2,138.37,138.36,7.54723135]
[1763387998492,0.2,138.37,138.36,0.67]
[1763387998692,0.2,138.37,138.34,7.54723135]
[1763387999209,0.2,138.37,138.34,6.87723135]
[1763387999403,0.2,138.37,138.34,7.54723135]
[1763387999796,0.2,138.37,138.34,6.87723135]
[1763388000610,0.78,138.37,138.32,6.87723135]
[1763388000810,0.78,138.37,138.25,9.78882769]
[1763388000811,0.78,138.37,138.29,0.67]
[1763388001012,24.99819135,138.34,138.24,6.87723135]
[1763388001214,24.99819135,138.34,138.26,0.67]
[1763388001215,6.87723135,138.32,138.26,0.67]
[1763388001613,24.99819135,138.31,138.24,0.67]
[1763388001812,24.99819135,138.31,138.26,6.87723135]
[1763388002016,24.99819135,138.31,138.26,7.54723135]
[1763388002225,24.99819135,138.31,138.26,0.67]
[1763388002531,24.99819135,138.31,138.15,6.87723135]
[1763388002532,18.12096,138.28,138.15,6.87723135]
[1763388002725,18.12096,138.28,138.16,0.67]
[1763388002726,6.87723135,138.23,138.16,0.67]
[1763388002904,24.99819135,138.2,138.15,6.87723135]
[1763388003107,6.87723135,138.19,138.15,0.67]
[1763388003307,6.87723135,138.18,138.13,0.1]
[1763388003526,24.99819135,138.16,138.13,0.1]
[1763388003925,6.87723135,138.16,138.13,0.1]
[1763388004110,7.45723135,138.15,138.13,0.1]
[1763388004306,18.12096,138.16,138.13,0.1]
[1763388004516,18.12096,138.19,138.13,6.97723135]
[1763388004730,6.87723135,138.18,138.13,0.1]
[1763388004930,6.87723135,138.15,138.13,0.1]
[1763388005237,6.87723135,138.14,138.13,0.1]
[1763388005443,7.45723135,138.14,138.13,0.1]
[1763388005736,9.78882769,138.2,138.13,0.1]
[1763388005905,18.12096,138.15,138.13,6.97723135]
[1763388006508,6.87723135,138.19,138.14,0.68]
[1763388006831,24.99819135,138.18,138.13,6.97723135]
[1763388007010,24.99819135,138.18,138.13,0.1]
[1763388007214,6.87723135,138.16,138.13,0.1]
[1763388007428,18.70096,138.17,138.13,0.1]
[1763388007610,6.87723135,138.14,138.13,0.1]
[1763388007930,6.87723135,138.18,138.13,7.65723135]
[1763388008136,6.87723135,138.14,138.13,0.1]
[1763388008530,0.58,138.14,138.13,0.1]
[1763388008710,7.45723135,138.14,138.13,0.1]
[1763388009610,0.58,138.14,138.13,0.1]
[1763388009836,7.45723135,138.14,138.13,0.1]
[1763388010547,17.24605904,138.14,138.13,0.1]
[1763388011347,18.12096,138.11,138.07,0.1]
[1763388011520,24.99819135,138.08,138.07,0.1]
[1763388011715,34.78701904,138.08,138.02,50.1]
[1763388012043,18.12096,138.12,138.03,7.55723135]
[1763388012339,6.87723135,138.09,138.04,6.87723135]
[1763388012544,17.4,138.15,138.07,6.87723135]
[1763388012718,6.87723135,138.14,138.08,7.55723135]
[1763388012916,6.87723135,138.11,138.03,0.68]
[1763388013115,6.87723135,138.11,138.05,6.87723135]
[1763388013323,24.27723135,138.15,138.04,9.78882769]
[1763388013324,17.4,138.15,138.04,9.78882769]
[1763388013527,6.87723135,138.14,138.08,6.87723135]
[1763388013830,18.12096,138.12,138.07,6.87723135]
[1763388014334,6.87723135,138.11,138.06,6.87723135]
[1763388014537,18.12096,138.11,138.08,6.87723135]
[1763388014713,18.12096,138.11,138.07,0.68]
[1763388014714,24.99819135,138.12,138.07,0.68]
[1763388014916,18.12096,138.12,138.09,6.87723135]
[1763388015111,18.12096,138.12,138.07,0.68]
[1763388015112,18.12096,138.12,138.08,6.87723135]
[1763388015321,18.12096,138.12,138.02,50.1]
[1763388015322,6.87723135,138.11,138.02,50.1]
[1763388015542,18.12096,138.12,138.07,7.55723135]
[1763388015722,18.12096,138.12,138.08,6.87723135]
[1763388016037,18.12096,138.12,138.09,6.87723135]
[1763388016343,17.4,138.15,138.11,6.87723135]
[1763388016649,50.0,138.24,138.13,6.87723135]
[1763388016650,0.48,138.22,138.13,6.87723135]
[1763388016814,6.87723135,138.18,138.13,6.87723135]
[1763388017020,6.87723135,138.24,138.15,6.87723135]
[1763388017021,9.78882769,138.23,138.15,6.87723135]
[1763388017215,50.0,138.28,138.15,6.87723135]